[Event "14th Karen Asrian Memorial 2024"]
[Site "Yerevan"]
[Date "2024.04.29"]
[Round "6.3"]
[White "Pranesh M"]
[Black "Hayrapetyan, Edgar"]
[Result "1-0"]
[ECO "B45"]
[WhiteElo "2538"]
[BlackElo "2340"]
[Annotator "TA"]
[PlyCount "101"]
[EventDate "2024.04.24"]
[EventType "swiss"]
[EventCountry "ARM"]
[SourceTitle "playchess.com"]
[Source "ChessBase"]
[SourceQuality "1"]
[TimeControl "40/5400+30:1800+30"]

{[%evp 16,101,39,29,47,36,24,38,37,33,13,0,37,0,0,7,0,6,23,23,21,15,22,21,22,26,16,0,0,0,0,0,0,0,0,0,17,0,22,8,26,3,52,36,30,0,213,0,180,0,0,0,0,0,15,29,393,250,393,386,456,456,456,456,456,442,436,414,380,352,645,645,649,649,638,531,622,540,631,604,679,664,684,653,29975,29976,2075,1310]} 1. e4 {[%emt 0:00:06]} c5 {[%emt 0:06:43]} 2. Nf3 {[%emt 0:00:03]} e6 {[%emt 0:00:08]} 3. d4 {[%emt 0:00:04]} cxd4 {[%emt 0:00:05]} 4. Nxd4 {[%emt 0:00:04]} Nf6 {[%emt 0:00:06]} 5. Nc3 {[%emt 0:00:04]} Nc6 {[%emt 0:00:04]} 6. Nxc6 {[%emt 0:00:26]} bxc6 {[%emt 0:01:39]} 7. e5 {[%emt 0:00:06]} Nd5 {[%emt 0:00:05]} 8. Ne4 {[%emt 0:00:04]} Qc7 {[%emt 0:00:05]} 9. f4 $1 {[%emt 0:00:04]} Rb8 {[%emt 0:00:05]} 10. a3 {[%emt 0:03:17]} (10. c4 $5) 10... Qb6 {[%emt 0:08:06]} 11. Bd3 {[%emt 0:03:10]} Ba6 {[%emt 0:09:09] White is slightly better.} 12. Bxa6 {[%emt 0:04:42]} Qxa6 {[%emt 0:00:02]} 13. Qe2 {[%emt 0:00:26]} Qxe2+ {[%emt 0:03:42]} 14. Kxe2 {[%emt 0:00:02]} f5 {[%emt 0:00:11]} 15. Nf2 {[%emt 0:00:39]} a5 {[%emt 0:08:45]} 16. Nd3 {[%emt 0:05:19]} a4 {[%emt 0:04:33]} 17. Bd2 {[%emt 0:07:17]} Be7 {[%emt 0:01:26]} 18. c4 {[%emt 0:10:05]} Nc7 {[%emt 0:10:31]} 19. Bb4 {[%emt 0:09:00]} Kf7 {[%emt 0:08:51]} 20. Bd6 {[%emt 0:03:07]} Rb7 {[%emt 0:01:05]} 21. Rhd1 {[%emt 0:09:41] [#] Threatens to win with Nc5.} Rd8 {[%emt 0:04:13]} 22. Bxc7 {[%emt 0:09:54]} Rxc7 {[%emt 0:00:39]} 23. c5 {[%emt 0:00:12]} Rb8 {[%emt 0:03:37]} 24. Rac1 {[%emt 0:00:09]} Ra7 {[%emt 0:00:25]} 25. Rc4 {[%emt 0:00:06]} Rb5 {[%emt 0:00:08]} 26. Rdc1 {[%emt 0:01:00]} Raa5 {[%emt 0:03:15]} 27. Rb4 {[%emt 0:01:13]} g5 {[%emt 0:03:28]} 28. g3 {[%emt 0:04:37]} g4 {[%emt 0:02:04]} (28... h6 $11) 29. Rcc4 $14 {[%emt 0:02:27]} h5 {[%emt 0:02:54]} 30. Kf1 {[%emt 0:03:41]} (30. Rxa4 Rxa4 31. Rxa4 Bxc5 $11) 30... Ke8 $2 {[%emt 0:02:36]} (30... Ra7 $11) 31. Kg2 $2 {[%emt 0:01:48]} (31. Rxa4 $18 h4 (31... Rxa4 $2 32. Rxa4 Rb8 33. Ra7 $18) 32. Rxa5 Rxa5 33. Rc3 hxg3 34. hxg3) 31... Kd8 $2 {[%emt 0:01:05]} (31... Ra7 $11) 32. h4 $2 {[%emt 0:00:56]} ({White has to play} 32. Rxa4 $18 {aiming for Kf1.} Rxa4 33. Rxa4) 32... Kc7 $11 {[%emt 0:00:21]} 33. Kf1 {[%emt 0:00:40]} Ra7 {[%emt 0:02:40]} (33... Bxc5 $2 {too greedy.} 34. Rxb5 (34. Rxa4 Rxa4 35. Rxa4 Be3 $11) 34... Rxb5 35. Rxc5 $18 (35. Nxc5 Rxb2 36. Rc3 Rb1+ 37. Ke2 Ra1 $18)) 34. Ke2 {[%emt 0:00:25]} Raa5 {[%emt 0:05:26]} 35. Kd2 {[%emt 0:01:03]} Rxb4 $4 {[%emt 0:00:48][%mdl 8192] Loses the game.} (35... Ra8 $11 {and Black is okay.}) 36. axb4 {[%emt 0:00:15][%mdl 4096] Endgame. KRB-KRN} Ra8 {[%emt 0:00:01] [#]} (36... Ra7 $142 37. Rc3 Kb8) 37. Rc3 $1 $18 {[%emt 0:00:13]} Kb8 {[%emt 0:06:04]} 38. Ra3 {[%emt 0:00:18]} Ra7 {[%emt 0:00:01]} 39. Kc3 {[%emt 0:00:11]} Kb7 {[%emt 0:00:18]} 40. Kc4 {[%emt 0:00:00]} Ra8 {[%emt 0:00:00]} 41. Nc1 {[%emt 0:00:12]} Bd8 {[%emt 0:01:36]} 42. Ne2 {[%emt 0:00:09]} Ra7 $2 {[%emt 0:06:19]} (42... Be7 43. Kd3 (43. Nc3 Rg8 $18) 43... Ra7) 43. Nc3 {[%emt 0:00:14]} Ra8 {[%emt 0:00:03]} 44. Nxa4 {[%emt 0:02:07]} Ra7 {[%emt 0:03:48]} 45. b3 {[%emt 0:00:28]} Ra8 {[%emt 0:00:16]} 46. Ra2 {[%emt 0:00:07]} Ra7 {[%emt 0:00:49]} 47. Rd2 {[%emt 0:00:24]} Kc8 {[%emt 0:00:16]} 48. b5 {[%emt 0:00:27]} cxb5+ {[%emt 0:02:10]} 49. Kxb5 {[%emt 0:00:06]} Rb7+ {[%emt 0:00:18]} 50. Nb6+ {[%emt 0:00:40]} Kb8 {[%emt 0:00:02]} 51. b4 {[%emt 0:00:48] Weighted Error Value: White=0.13 (very precise) /Black=0.67.  Loses game:     	---       	Black=3      Missed win:     	White=2     	---        Mistake:       	---       	Black=3      Inaccurate:     	White=3     	---        OK:         	White=19    	Black=8      Best:        	---       	Black=1      Strong:       	White=1     	---} 1-0

[Event "14th Karen Asrian Memorial 2024"]
[Site "Yerevan"]
[Date "2024.04.29"]
[Round "6.4"]
[White "Babujian, Levon"]
[Black "Davtyan, Artur"]
[Result "1-0"]
[ECO "B90"]
[WhiteElo "2338"]
[BlackElo "2474"]
[Annotator "TA"]
[PlyCount "83"]
[EventDate "2024.04.24"]
[EventType "swiss"]
[EventCountry "ARM"]
[SourceTitle "playchess.com"]
[Source "ChessBase"]
[SourceQuality "1"]
[TimeControl "40/5400+30:1800+30"]

{[%evp 17,83,31,20,20,26,30,25,20,20,11,16,0,0,0,0,0,9,0,62,48,64,41,55,38,104,44,39,47,208,102,264,168,159,127,394,401,359,375,597,411,378,415,422,416,425,391,592,576,591,565,757,750,1090,1120,4914,3854,2270,2094,2908,2622,29951,12837,29967,29965,29964,29966,29981,29982]} 1. e4 {[%emt 0:04:22]} c5 {[%emt 0:00:43]} 2. Nf3 {[%emt 0:00:00]} d6 {[%emt 0:06:06]} 3. d4 {[%emt 0:00:00]} cxd4 {[%emt 0:00:07]} 4. Nxd4 {[%emt 0:00:00]} Nf6 {[%emt 0:00:09]} 5. Nc3 {[%emt 0:00:00]} a6 {[%emt 0:00:04]} 6. Be3 {[%emt 0:00:00]} e5 {[%emt 0:00:08]} 7. Nb3 {[%emt 0:00:00]} Be6 {[%emt 0:00:11]} 8. f3 {[%emt 0:00:00]} h5 {[%emt 0:00:59]} 9. Qd2 {[%emt 0:00:00]} Nbd7 {[%emt 0:00:07]} 10. Nd5 {[%emt 0:00:00]} Bxd5 {[%emt 0:00:53]} 11. exd5 {[%emt 0:00:00]} g6 {[%emt 0:00:17]} 12. O-O-O {[%emt 0:00:46] White has an edge.} Nb6 {[%emt 0:00:20]} 13. Qa5 {[%emt 0:00:51]} Bh6 {[%emt 0:00:06]} 14. Bxh6 {[%emt 0:00:03]} Rxh6 {[%emt 0:00:07]} 15. Kb1 {[%emt 0:01:18]} Kf8 {[%emt 0:01:36]} 16. c4 {[%emt 0:02:33][%cal Bc2c4,Bc4c5][%mdl 32]} Kg7 {[%emt 0:03:47]} 17. c5 {[%emt 1:29:07]} Nbxd5 (17... dxc5 $1 $11 18. Nxc5 Nfxd5) 18. Bc4 $14 Ne3 {[%csl LRc4,LRd1,LRg2]} 19. Rxd6 Qe7 20. Qc3 $36 {[%mdl 2048] Black is under pressure.} Nxg2 ({Better is} 20... Nxc4 $14 21. Qxc4 h4) 21. Na5 (21. Rhd1 $16) 21... Rc8 22. b4 {[%cal Oa5b7] Nxb7! is the strong threat.} h4 $2 {[#]} (22... Rhh8 $14) 23. Rhd1 (23. Nxb7 $1 $18 {[%cal Oh1d1] is the precise move to win. aiming for Rhd1!} Ne8 (23... Qxb7 $2 24. Bxa6 Qb8 25. Bxc8 $18) 24. Rb6 (24. Rxa6 Qxb7 25. Qxe5+ Kh7 $14)) 23... Rh5 $2 (23... Rc7 $16) 24. c6 bxc6 {[%cal Of6d5]} 25. Bxa6 {White has more active pieces.} (25. Nxc6 $6 Qb7 26. Nxe5 Rf5 $16) 25... Ra8 {[%mdl 8192]} (25... Nd5 $2 26. Qc5 (26. Rxc6 $2 Nxc3+ 27. Ka1 Rxc6 $19) (26. R6xd5 cxd5 27. Bxc8 d4 $18) 26... Rc7 27. Nxc6 (27. Rxc6 $2 Rxc6 28. Nxc6 Qxc5 $19) 27... Nxb4 28. Qxb4 $18) (25... Rc7 $16 26. Nxc6 Ne8 27. Nxe7 Rxc3) 26. Nxc6 $18 Qc7 27. b5 Rf5 (27... Qb6 $142) 28. Qb2 {Hoping for b6.} Ne3 {[%cal Bg2e3,Be3d1,Bd1b2][%mdl 32]} 29. b6 Nxd1 (29... Rxa6 $2 30. bxc7 Nxd1 31. Qc1 (31. c8=Q Rxc6 32. Qxc6 Nxb2 $18) (31. Qb3 Rb6 $18) 31... Rxf3 32. Qxd1 $18 (32. c8=R $2 Nc3+ $19) (32. Rxd1 Ra8 $18)) 30. bxc7 Nxb2 {[#]} 31. Nb8 $1 (31. Kxb2 Ne8 32. c8=Q Rxc8 33. Bxc8 Nxd6 $11) 31... Ne8 {[#]} (31... Rf4 {was worth a try.}) 32. Rxg6+ $3 {[%mdl 512]} Kxg6 33. c8=Q (33. c8=R $2 Nd6 34. Rh8 Nbc4 35. Bxc4 Nxc4 $19) 33... Rf6 {Repels Qc6} 34. Bb7 ({Less strong is} 34. Qxe8 Rfxa6 35. Qg8+ (35. Kxb2 Rb6+ 36. Kc2 Raxb8 $17) (35. Qxe5 Re6 $11) 35... Kh6 $16) 34... Ra4 35. Qxe8 Rb4 36. Qg8+ Kh5 37. Qh8+ Kg5 38. Qg7+ Rg6 39. Qxe5+ Kh6 40. Qh8+ {White mates.} Kg5 41. Qd8+ Rf6 42. Qa5+ {[%emt 0:00:00] Weighted Error Value: White=0.23 (precise) /Black=0.91.  Loses game:     	---       	Black=3      Mistake:       	White=2     	Black=4      Inaccurate:     	White=2     	Black=2      OK:         	White=8     	Black=8      Best:        	White=5     	Black=3      Strong:       	White=1     	---        Brilliant:      	White=1     	---} 1-0

[Event "14th Karen Asrian Memorial 2024"]
[Site "Yerevan"]
[Date "2024.04.29"]
[Round "6.5"]
[White "Korshunov, Sergey And."]
[Black "Shahinyan, David"]
[Result "1/2-1/2"]
[ECO "C02"]
[WhiteElo "2286"]
[BlackElo "2441"]
[Annotator "TA"]
[PlyCount "125"]
[EventDate "2024.04.24"]
[EventType "swiss"]
[EventCountry "ARM"]
[SourceTitle "playchess.com"]
[Source "ChessBase"]
[SourceQuality "1"]
[TimeControl "40/5400+30:1800+30"]

{[%evp 33,125,54,72,55,52,52,64,55,58,53,43,61,74,82,85,52,69,62,69,37,52,0,0,-18,0,0,0,0,0,0,15,13,8,0,7,15,25,-7,18,0,0,-22,-18,-32,0,0,0,-36,24,0,0,0,0,0,0,0,0,0,0,0,0,0,0,0,0,0,0,-8,-8,-8,0,0,0,0,3,3,45,43,88,23,43,0,0,0,0,0,0,0,0,0,0,0,0,0]} 1. e4 {[%emt 0:00:03]} e6 {[%emt 0:03:49]} 2. d4 {[%emt 0:00:06]} d5 {[%emt 0:00:07]} 3. e5 {[%emt 0:00:06]} Bd7 {[%emt 0:00:59]} 4. Nf3 {[%emt 0:00:28]} a6 {[%emt 0:00:03]} 5. Be2 {[%emt 0:05:53]} Bb5 {[%emt 0:00:53]} 6. O-O {[%emt 0:00:08] C02: French: Advance Variation.} Bxe2 {[%emt 0:01:16]} 7. Qxe2 {[%emt 0:00:06]} Ne7 {[%emt 0:00:04]} 8. Rd1 {[%emt 0:06:45]} Nd7 $146 {[%emt 0:05:30]} ({Predecessor:} 8... Nf5 9. Nbd2 g5 10. g4 Ng7 11. Nf1 Be7 12. Be3 Nd7 13. Ng3 Nf8 14. Qd2 h6 {0-1 Yamada,K (2207)-Averbukh,A (2153) JPN-ch Tokyo 2023 (7)}) 9. b3 {[%emt 0:03:32]} Ng6 {[%emt 0:04:22]} 10. c4 {[%emt 0:01:03]} c6 {[%emt 0:00:03]} 11. Nbd2 {[%emt 0:05:02]} Be7 {[%emt 0:02:18]} 12. Nf1 {[%emt 0:01:14]} O-O {[%emt 0:00:07]} 13. g3 {[%emt 0:08:02]} Re8 {[%emt 0:18:52]} 14. h4 {[%emt 0:03:16]} h6 {[%emt 0:02:41]} 15. h5 {[%emt 0:11:08]} Nh8 {[%emt 0:04:03]} 16. Bf4 {[%emt 0:00:26]} f6 {[%emt 0:00:46]} 17. Ne3 {[%emt 0:12:51]} Nf7 {[%emt 0:04:30]} 18. Ng4 {[%emt 0:00:00]} f5 {[%emt 0:05:52]} 19. Ne3 {[%emt 0:00:00]} Nf8 {[%emt 0:05:11]} 20. Ng2 {[%emt 0:13:23]} Ng5 {[%emt 0:07:38]} 21. Be3 {[%emt 0:03:42]} Ne4 {[%emt 0:01:37]} 22. Rac1 {[%emt 0:00:07]} Ba3 {[%emt 0:03:58]} 23. Rc2 {[%emt 0:24:39]} a5 24. Nd2 {[%emt 0:00:00]} Nxd2 {[%emt 0:05:23]} 25. Bxd2 {[%emt 0:00:00]} Be7 {[%emt 0:00:10]} 26. Nf4 {[%emt 0:00:00]} dxc4 {[%emt 0:03:32]} 27. Qxc4 {[%emt 0:00:00]} ({White should try} 27. bxc4 $14 Qxd4 28. Bxa5) 27... Bg5 $11 {[%emt 0:00:05]} 28. Nd3 {[%emt 0:00:00]} Bxd2 {[%emt 0:01:10]} 29. Rdxd2 {[%emt 0:00:00]} Qe7 {[%emt 0:00:48]} 30. Nf4 {[%emt 0:00:00]} Nd7 {[%emt 0:00:52]} 31. Kg2 {[%emt 0:00:00]} Rad8 {[%emt 0:01:25]} 32. Qc3 {[%emt 0:00:00]} Ra8 {[%emt 0:00:45]} 33. Rb2 {[%emt 0:00:00]} Nb6 {[%emt 0:02:08]} 34. Qc5 {[%emt 0:00:00]} Ra6 {[%emt 0:00:01]} (34... Qd8 {is interesting.} 35. Rdc2 Kf7 36. Rb1 Nd7) 35. Rbc2 {[%emt 0:00:00]} Qd7 {[%emt 0:00:17]} (35... Qf7 {seems wilder.} 36. Ng6 Nd5 37. a3 Rd8) 36. Re2 {[%emt 0:00:00]} Qf7 {[%emt 0:05:05]} 37. Qd6 {[%emt 0:00:00]} Raa8 {[%emt 0:04:02]} 38. Qc5 {[%emt 0:00:00]} Ra6 {[%emt 0:00:34]} 39. Qd6 {[%emt 0:00:00]} Raa8 {[%emt 0:00:40]} 40. Qc5 {[%emt 0:00:00]} Nc8 {[%emt 0:00:00]} (40... Nd5 $15 41. Nxd5 cxd5) 41. Rb2 {[%emt 0:03:56]} Ne7 {[%emt 0:14:21]} 42. b4 {[%emt 0:04:05]} axb4 {[%emt 0:03:50]} 43. Qxb4 {[%emt 0:05:39]} Nd5 {[%emt 0:01:35]} 44. Qxb7 {[%emt 0:00:44]} Nxf4+ {[%emt 0:04:29]} 45. gxf4 {[%emt 0:00:04]} Qxh5 {[%emt 0:00:49]} 46. Re3 {[%emt 0:00:03]} Qf7 {[%emt 0:00:01]} 47. Rg3 {[%emt 0:01:09]} Ra7 {[%emt 0:01:05]} 48. Qxc6 {[%emt 0:02:29]} Rc7 {[%emt 0:01:13]} 49. Qa4 {[%emt 0:03:41]} Rc1 {[%emt 0:00:46]} 50. Rc2 {[%emt 0:05:04]} Qb7+ {[%emt 0:03:49]} 51. Rf3 {[%emt 0:00:03]} Rc8 {[%emt 0:00:03]} 52. Qb3 {[%emt 0:00:16]} (52. Rxc1 Rxc1 53. Qb3 (53. Qe8+ $2 Kh7 $19) 53... Qc6 $15) 52... Qd7 {[%emt 0:04:27]} 53. Rxc8+ {[%emt 0:02:20]} Rxc8 {[%emt 0:00:03]} 54. Rd3 {[%emt 0:01:31]} Rd8 {[%emt 0:00:01]} 55. a4 {[%emt 0:01:46]} Kh7 {[%emt 0:00:55] [#]} 56. Qb5 {[%emt 0:01:12]} (56. a5 $1 $16) 56... Qf7 {[%emt 0:01:05]} 57. Qc6 {[%emt 0:06:08]} Rb8 {[%emt 0:01:30]} 58. d5 {[%emt 0:00:28]} Rb1 {[%emt 0:00:43]} 59. Qxe6 {[%emt 0:00:35]} (59. dxe6 $2 {loses.} Qh5 60. Rh3 Qd1 $19) 59... Qh5 {[%emt 0:00:36]} 60. Rh3 {[%emt 0:00:08]} Qg4+ {[%emt 0:00:26]} 61. Rg3 {[%emt 0:00:04]} Qh5 {[%emt 0:00:02]} 62. Rh3 {[%emt 0:00:06]} Qg4+ {[%emt 0:00:03]} 63. Rg3 {[%emt 0:00:03]} 1/2-1/2

[Event "14th Karen Asrian Memorial 2024"]
[Site "Yerevan"]
[Date "2024.04.29"]
[Round "6.6"]
[White "Hakobyan, Erik"]
[Black "Danielyan, Vahe"]
[Result "0-1"]
[ECO "C54"]
[WhiteElo "2383"]
[BlackElo "2331"]
[Annotator "TA"]
[PlyCount "108"]
[EventDate "2024.04.24"]
[EventType "swiss"]
[EventCountry "ARM"]
[SourceTitle "playchess.com"]
[Source "ChessBase"]
[SourceQuality "1"]
[TimeControl "40/5400+30:1800+30"]

{[%evp 10,108,9,7,7,6,22,8,12,0,4,14,3,0,13,0,0,0,0,0,0,0,14,10,12,-13,8,12,20,12,18,20,9,9,15,0,17,-16,0,0,12,0,10,8,72,75,106,37,37,22,91,93,129,36,27,-44,0,-55,0,0,85,58,153,154,162,160,164,151,151,156,324,145,218,210,195,54,81,60,72,45,66,-6,0,-93,-93,-103,-90,-466,59,35,83,58,149,0,0,-430,8,-1645,-1650,-1714,-1669]} 1. e4 {[%emt 0:00:17]} e5 {[%emt 0:00:12]} 2. Nf3 {[%emt 0:00:17]} Nc6 {[%emt 0:00:05]} 3. Bc4 {[%emt 0:00:06]} Bc5 {[%emt 0:00:06]} 4. c3 {[%emt 0:00:15]} Nf6 {[%emt 0:00:09]} 5. d3 {[%emt 0:00:11]} d6 {[%emt 0:00:22]} 6. O-O {[%emt 0:00:32]} a5 {[%emt 0:00:05]} 7. h3 {[%emt 0:00:59]} h6 {[%emt 0:00:05]} 8. Re1 {[%emt 0:00:32]} O-O {[%emt 0:00:32] The position is equal.} 9. Nbd2 {[%emt 0:00:12]} Be6 {[%emt 0:01:51]} 10. Bb5 {[%emt 0:01:00][%cal Bc4b5,Bb5a4,Ba4c2][%mdl 32]} Qb8 {[%emt 0:01:26]} 11. Nf1 $1 {[%emt 0:03:49]} Qa7 {[%emt 0:00:02]} 12. Be3 {[%emt 0:00:34]} Bxe3 {[%emt 0:00:47]} 13. Nxe3 {[%emt 0:00:09]} Ne7 {[%emt 0:00:54]} 14. Ba4 {[%emt 0:01:26]} Ng6 {[%emt 0:02:08]} 15. Bc2 {[%emt 0:00:06]} Qb6 {[%emt 0:01:22]} 16. b3 {[%emt 0:07:54]} Rfe8 {[%emt 0:00:41]} 17. Qd2 {[%emt 0:09:50]} Rad8 {[%emt 0:03:40]} 18. d4 {[%emt 0:06:21]} c6 {[%emt 0:02:15]} 19. Rad1 {[%emt 0:07:00]} Qc7 {[%emt 0:01:59]} 20. c4 {[%emt 0:01:58]} Bc8 {[%emt 0:09:47]} 21. Qc3 {[%emt 0:09:08]} exd4 {[%emt 0:03:39]} 22. Qxd4 {[%emt 0:03:49]} Nf4 {[%emt 0:00:59]} 23. Nd2 {[%emt 0:22:56]} (23. Nh4 {is more complex.} c5 24. Qc3 Nxe4 25. Bxe4 Rxe4 26. Nef5) 23... Re5 {[%emt 0:04:02]} (23... d5 $5) 24. Nf3 {[%emt 0:00:57]} Ree8 {[%emt 0:00:25]} 25. Nd2 {[%emt 0:00:37]} (25. Nh4 {seems wilder.} c5 26. Qc3 Nxe4 27. Bxe4 Rxe4 28. Nef5) 25... Re7 {[%emt 0:05:50]} 26. Ndf1 {[%emt 0:02:25][%cal Oe4e5]} Ne6 {[%emt 0:04:24]} (26... N6h5 $11) 27. Qa1 $1 $16 {[%emt 0:00:29]} Nc5 {[%emt 0:00:08]} 28. f3 {[%emt 0:00:24]} (28. Ng3 $1 $16) 28... Nh5 $14 {[%emt 0:01:34]} 29. Rd2 {[%emt 0:00:59]} Nf4 {[%emt 0:01:29]} (29... Ree8 $11) 30. Ng3 $16 {[%emt 0:01:49]} g6 {[%emt 0:01:41][%cal Od6d5] Against Ngf5} 31. Kf2 {[%emt 0:00:25]} (31. Qf6 $16 d5 32. cxd5 (32. exd5 cxd5 33. Kf2 Re6 $16) 32... cxd5 33. Ngf1 (33. exd5 Rxd5 34. Nxd5 Rxe1+ 35. Kf2 Nxd5 $11)) 31... Re5 $1 $14 {[%emt 0:01:19]} 32. Red1 {[%emt 0:01:51]} (32. Ne2 $11 Nxe2 33. Rdxe2) 32... Qe7 $1 $15 {[%emt 0:00:57]} 33. a3 {[%emt 0:02:36]} (33. Ne2 $1 $11 Qh4+ 34. g3 Nxh3+ 35. Kg2) 33... h5 {[%emt 0:08:37]} (33... Qh4 $15 34. Rxd6 Rxd6 35. Rxd6 Re8) 34. b4 $1 $11 {[%emt 0:02:03]} Nce6 {[%emt 0:06:43]} (34... Na6 $11 {remains equal.}) 35. c5 $1 $16 {[%emt 0:03:04][%cal Rc5d6]} Nxh3+ {[%emt 0:02:45]} 36. gxh3 {[%emt 0:00:39]} Ng5 {[%emt 0:00:40]} 37. Rxd6 {[%emt 0:06:08]} (37. bxa5 Nxh3+ 38. Ke2 (38. Kg2 $2 Qg5 $19) 38... Qg5 $19 (38... Rxc5 39. a6 $17)) 37... Re8 {[%emt 0:00:01]} 38. Ke2 {[%emt 0:01:38] f4 would now be deadly.} (38. bxa5 Nxh3+ 39. Ke1 Qg5 $11 (39... Rxc5 $2 40. Bb3 $16)) 38... Nxh3 {[%emt 0:00:15]} 39. Kd2 $1 {[%emt 0:02:08] Hoping for Bb3.} (39. bxa5 Qh4 (39... Rxc5 40. Bb3 $16) 40. Nef1 Nf4+ (40... Rxc5 41. Bb3 $14) 41. Kd2 Qg5 $11) 39... Qg5 $2 {[%emt 0:01:34]} (39... Qh4 $16 {was worth a try.}) 40. Ngf1 {[%emt 0:00:00]} (40. Ne2 $18 {is the precise move to win.}) 40... Nf2 {[%emt 0:00:00]} (40... Ng1 $16 {was called for.}) 41. Re1 $18 {[%emt 0:05:23]} Qf4 {[%emt 0:04:47]} 42. Kc3 {[%emt 0:04:17]} (42. bxa5 Qxf3 43. Kc1 Rxc5 $11 (43... Nxe4 44. Rd8 $11)) (42. Ke2 $18 Nh3 43. Nd2 (43. bxa5 $2 Ng1+ 44. Kd1 Nxf3 $19)) 42... Qxf3 {[%emt 0:01:22]} 43. Nd2 {[%emt 0:00:05]} Qf4 {[%emt 0:00:51]} (43... axb4+ $2 44. Kxb4 Qh3 45. Nec4 $18) 44. Nec4 {[%emt 0:01:30]} (44. bxa5 $2 Rxc5+ 45. Ndc4 Qxd6 $19) 44... Rg5 {[%emt 0:00:47]} 45. Rf1 {[%emt 0:02:03]} (45. bxa5 Rxc5 46. Kb3 Rb5+ 47. Ka2 Be6 48. Rxe6 (48. Qd4 c5 $17) 48... fxe6 $16 (48... Rxe6 49. Rf1 $14)) ({White should play} 45. Kb3 $14 Be6 46. Ka4 (46. bxa5 h4 $17)) 45... Bh3 $11 {[%emt 0:00:15] The board is on fire.} 46. Re1 {[%emt 0:01:54]} (46. Rg1 $11 {keeps the balance.}) 46... h4 $17 {[%emt 0:00:14][%mdl 1024] Black has strong compensation. Black is much more active.} 47. Re3 {[%emt 0:01:48]} (47. bxa5 Be6 (47... Rxc5 48. Kb4 $15) 48. Kb4 h3 $15) 47... Bg2 $1 $36 {[%emt 0:00:22][%mdl 2048] aiming for ...Rg3. Black is in control.} 48. e5 $2 {[%emt 0:00:37][%mdl 8192]} (48. Kb3 $17 {is a better chance.} Rg3 (48... Nxe4 $2 49. Nxe4 Bxe4 50. Rxe4 $18) 49. Qd4) 48... Bd5 $2 {[%emt 0:00:52]} ({Black should try} 48... Rg3 $19 49. Rxg3 Qxg3+ (49... hxg3 50. Rd4 $11) 50. Kb2 Bd5) 49. Rf6 $14 {[%emt 0:01:19]} Qh2 {[%emt 0:02:13] [#] ...Ng4 is the strong threat.} 50. Qf1 $1 {[%emt 0:07:05]} Rg2 {[%emt 0:03:02]} (50... axb4+ $14 51. Kxb4 Ng4) 51. Re2 {[%emt 0:04:57]} (51. Nf3 $16 Bxf3 52. Rexf3 (52. Rfxf3 Ng4 $17)) 51... Ng4 $11 {[%emt 0:06:33][%csl LRe2,LRe5,LRf6]} (51... axb4+ 52. Kxb4 Nh3 53. Rxg2 Bxg2 54. Qe2 $16) 52. e6 $2 {[%emt 0:02:12][%mdl 8192] [#]} (52. Rxg2 $11 Bxg2 53. Qf4 Qh3+ 54. Kb2 Nxf6 55. exf6) 52... Rxe6 $2 {[%emt 0:03:33]} (52... Rxe2 53. Rxg6+ Kh8 54. Qxf7 Qg3+ 55. Kb2) ({Better is} 52... Nxf6 $1 $19 53. exf7+ Kxf7 54. Rxe8 Bxc4 (54... Kxe8 55. Qxf6 Bxc4 56. Kxc4 $15) 55. Kxc4 Rf2 (55... Kxe8 56. Qxf6 Rxd2 57. Bxg6+ Kd7 58. Bf5+ Kc7 59. Bd3 $17) (55... Rxd2 56. Rf8+ Kxf8 57. Qxf6+ Ke8 58. Bxg6+ Kd7 59. Bf5+ Kc7 60. Bd3 $15) 56. Bxg6+ Kxg6 57. Qd3+ Kf7) 53. Rxf7 $2 {[%emt 0:01:23][%mdl 8192]} (53. Rfxe6 $11 fxe6 54. Rxg2 Qxg2 55. Qxg2 (55. bxa5 h3 $15) (55. Bxg6 $2 {perishes.} axb4+ 56. Kxb4 Qxf1 $19) 55... Bxg2 56. Bxg6 (56. Nxa5 h3 $11)) 53... Rexe2 $19 {[%emt 0:01:14]} 54. Rf8+ {[%emt 0:03:37]} Kg7 {[%emt 0:00:33] Quite a comeback for Black.   Weighted Error Value: White=0.53/Black=0.43.  Loses game:     	White=3     	Black=1      Missed win:     	White=1     	Black=2      Mistake:       	White=8     	Black=7      Inaccurate:     	White=1     	Black=4      OK:         	White=13    	Black=19     Best:        	White=2     	---        Strong:       	White=5     	Black=3} 0-1